bitfinex/quotes_BTCUSD_20240927
["timestamp","ask_amount","ask_price","bid_price","bid_amount"]
[1727474533487,0.154572,65975.0,65974.0,0.001656]
[1727474533716,0.157572,65975.0,65974.0,0.001656]
[1727474538552,0.006,65975.0,65974.0,0.19185625]
[1727474539029,0.00593937,65975.0,65974.0,0.35116736]
[1727474539495,0.003,65975.0,65974.0,0.19959336]
[1727474540222,0.303127,65979.0,65974.0,0.19959336]
[1727474540485,0.45469,65979.0,65978.0,0.11490025]
[1727474540730,0.45469,65979.0,65974.0,0.08469311]
[1727474540731,0.151572,65975.0,65974.0,0.00939311]
[1727474540961,0.151572,65975.0,65974.0,0.001656]
[1727474541883,0.152572,65975.0,65974.0,0.001656]
[1727474542123,0.2288568,65975.0,65974.0,0.001656]
[1727474544493,0.3288568,65975.0,65974.0,0.001656]
[1727474547079,0.001,65975.0,65974.0,0.001656]
[1727474547328,0.001,65975.0,65974.0,0.38043]
[1727474547860,0.001,65975.0,65974.0,0.55550088]
[1727474548303,0.1,65982.0,65975.0,0.151571]
[1727474548304,0.303118,65981.0,65975.0,0.151571]
[1727474548546,0.001,65975.0,65974.0,0.40392688]
[1727474548781,0.001,65975.0,65974.0,0.55550088]
[1727474549221,0.151568,65977.0,65974.0,0.40392688]
[1727474549455,0.001,65975.0,65974.0,0.40392688]
[1727474550139,0.15157,65977.0,65974.0,0.40392688]
[1727474550658,0.001,65977.0,65974.0,0.228856]
[1727474550936,0.253572,65975.0,65974.0,0.001656]
[1727474551171,0.251572,65975.0,65974.0,0.001656]
[1727474551386,0.253572,65975.0,65974.0,0.001656]
[1727474551667,0.40896006,65975.0,65974.0,0.001656]
[1727474551882,0.45428568,65975.0,65974.0,0.001656]
[1727474552129,0.47694849,65975.0,65974.0,0.001656]
[1727474552610,0.46028675,65975.0,65974.0,0.001656]
[1727474552822,0.45328675,65975.0,65974.0,0.001656]
[1727474553525,0.45528675,65975.0,65974.0,0.001656]
[1727474553752,0.46328675,65975.0,65974.0,0.001656]
[1727474554003,0.47328675,65975.0,65974.0,0.001656]
[1727474554199,0.46528675,65975.0,65974.0,0.001656]
[1727474554466,0.49705353,65975.0,65974.0,0.001656]
[1727474554687,0.45672684,65975.0,65974.0,0.001656]
[1727474554926,0.44672684,65975.0,65974.0,0.001656]
[1727474555150,0.54737808,65975.0,65974.0,0.001656]
[1727474555379,0.44672684,65975.0,65974.0,0.001656]
[1727474555642,0.47472684,65975.0,65974.0,0.001656]
[1727474555873,0.62822684,65975.0,65974.0,0.001656]
[1727474556095,0.64022684,65975.0,65974.0,0.001656]
[1727474556547,0.62822684,65975.0,65974.0,0.001656]
[1727474557499,0.60446006,65975.0,65974.0,0.001656]
[1727474557720,0.61846006,65975.0,65974.0,0.001656]
[1727474558399,0.60446006,65975.0,65974.0,0.001656]
[1727474558621,0.61846006,65975.0,65974.0,0.001656]
[1727474558851,0.60446006,65975.0,65974.0,0.001656]
[1727474559099,0.279572,65975.0,65974.0,0.001656]
[1727474559395,0.265572,65975.0,65974.0,0.001656]
[1727474559599,0.36237805,65975.0,65974.0,0.001656]
[1727474559862,0.38193828,65975.0,65974.0,0.001656]
[1727474560100,0.282572,65975.0,65974.0,0.001656]
[1727474560352,0.43399119,65975.0,65974.0,0.001656]
[1727474560575,0.44187297,65975.0,65974.0,0.001656]
[1727474560825,0.4796423,65975.0,65974.0,0.001656]
[1727474561529,0.4656423,65975.0,65974.0,0.001656]
[1727474561773,0.65371318,65975.0,65974.0,0.001656]
[1727474561997,0.65471318,65975.0,65974.0,0.001656]
[1727474562252,0.66871318,65975.0,65974.0,0.001656]
[1727474562485,0.65471318,65975.0,65974.0,0.001656]
[1727474562712,0.8068227,65975.0,65974.0,0.001656]
[1727474562949,0.65371318,65975.0,65974.0,0.001656]
[1727474563137,0.64071318,65975.0,65974.0,0.001656]
[1727474563579,0.8078227,65975.0,65974.0,0.001656]
[1727474563805,0.8218227,65975.0,65974.0,0.001656]
[1727474564039,0.66871318,65975.0,65974.0,0.001656]
[1727474564288,0.65471318,65975.0,65974.0,0.001656]
[1727474564565,0.8218227,65975.0,65974.0,0.001656]
[1727474564791,0.7938227,65975.0,65974.0,0.001656]
[1727474565255,0.8218227,65975.0,65974.0,0.001656]
[1727474565487,0.66871318,65975.0,65974.0,0.001656]
[1727474565719,0.81461318,65975.0,65974.0,0.001656]
[1727474565952,0.82944118,65975.0,65974.0,0.001656]
[1727474566410,0.81544118,65975.0,65974.0,0.001656]
[1727474566636,0.82944118,65975.0,65974.0,0.001656]
[1727474566875,0.81544118,65975.0,65974.0,0.001656]
[1727474567131,0.26859,65967.0,65966.0,0.22810698]
[1727474567371,0.46666088,65967.0,65966.0,0.22810698]
[1727474567843,0.46666088,65967.0,65966.0,0.001656]
[1727474568790,0.48066088,65967.0,65966.0,0.001656]
[1727474569018,0.49466088,65967.0,65966.0,0.001656]
[1727474569242,0.65104894,65967.0,65966.0,0.001656]
[1727474570890,0.67482163,65967.0,65966.0,0.001656]
[1727474571828,0.67482163,65967.0,65966.0,0.078956]
[1727474571829,0.20336269,65967.0,65966.0,0.078956]
[1727474572063,0.24765531,65967.0,65966.0,0.078956]
[1727474572332,0.22496553,65967.0,65966.0,0.078956]
[1727474572558,0.17959,65967.0,65966.0,0.078956]
[1727474572786,0.30941966,65967.0,65966.0,0.078956]
[1727474573023,0.39541966,65967.0,65966.0,0.078956]
[1727474573263,0.40041966,65967.0,65966.0,0.078956]
[1727474573501,0.27059,65967.0,65966.0,0.078956]
[1727474573731,0.005,65967.0,65966.0,0.225456]
[1727474573962,0.005,65967.0,65966.0,0.377049]
[1727474573963,0.015,65967.0,65966.0,0.377049]
[1727474574193,0.015,65967.0,65966.0,0.38511091]
[1727474574194,0.005,65967.0,65966.0,0.38511091]
[1727474574422,0.005,65967.0,65966.0,0.23351791]
[1727474574895,0.151587,65969.0,65966.0,0.23351791]
[1727474575130,0.004,65967.0,65966.0,0.23351791]
[1727474575611,0.001,65967.0,65966.0,0.23351791]
[1727474575845,0.002,65967.0,65966.0,0.23351791]
[1727474576772,0.001,65967.0,65966.0,0.38511091]
[1727474577255,0.15259,65967.0,65966.0,0.23351791]
[1727474577487,0.19827752,65967.0,65966.0,0.23351791]
[1727474577969,0.19827752,65967.0,65966.0,0.225456]
[1727474578218,0.19927752,65967.0,65966.0,0.23347951]
[1727474578745,0.19727752,65967.0,65966.0,0.23347951]
[1727474579201,0.19727752,65967.0,65966.0,0.08697951]
[1727474579428,0.19727752,65967.0,65966.0,0.078956]
[1727474579872,0.19827752,65967.0,65966.0,0.078956]
[1727474580336,0.19727752,65967.0,65966.0,0.078956]
[1727474580563,0.20127752,65967.0,65966.0,0.078956]
[1727474581014,0.20327752,65967.0,65966.0,0.078956]
[1727474581464,0.19727752,65967.0,65966.0,0.078956]
[1727474581924,0.20327752,65967.0,65966.0,0.078956]
[1727474582400,0.006,65967.0,65966.0,0.078956]
[1727474582867,0.15759,65967.0,65966.0,0.08695765]
[1727474583562,0.15359,65967.0,65966.0,0.08695765]
[1727474583825,0.15159,65967.0,65966.0,0.08695765]
[1727474584283,0.22749422,65967.0,65966.0,0.078956]
[1727474584988,0.22849422,65967.0,65966.0,0.078956]
[1727474585219,0.23149422,65967.0,65966.0,0.078956]
[1727474586179,0.23149422,65967.0,65966.0,0.001656]
[1727474586639,0.27798817,65967.0,65966.0,0.001656]
[1727474586871,0.27398817,65967.0,65966.0,0.001656]
[1727474587065,0.27798817,65967.0,65966.0,0.001656]
[1727474587591,0.29775713,65967.0,65966.0,0.001656]
[1727474587805,0.38198817,65967.0,65966.0,0.001656]
[1727474588040,0.38086995,65967.0,65966.0,0.001656]
[1727474588749,0.38089063,65967.0,65966.0,0.001656]
[1727474588945,0.33549422,65967.0,65966.0,0.001656]
[1727474589453,0.42628704,65967.0,65966.0,0.001656]
[1727474590380,0.33349422,65967.0,65966.0,0.001656]
[1727474590625,0.33449422,65967.0,65966.0,0.001656]
[1727474590847,0.35826401,65967.0,65966.0,0.001656]
[1727474591068,0.36026401,65967.0,65966.0,0.001656]
[1727474591290,0.35326401,65967.0,65966.0,0.001656]
[1727474591528,0.36926401,65967.0,65966.0,0.001656]
[1727474591756,0.34549422,65967.0,65966.0,0.001656]
[1727474592209,0.45900986,65967.0,65966.0,0.001656]
[1727474592879,0.34549422,65967.0,65966.0,0.001656]
[1727474594040,0.45903114,65967.0,65966.0,0.001656]
[1727474594505,0.34549422,65967.0,65966.0,0.001656]
[1727474594741,0.36926424,65967.0,65966.0,0.001656]
[1727474594969,0.38526424,65967.0,65966.0,0.001656]
[1727474595384,0.39126424,65967.0,65966.0,0.001656]
[1727474596389,0.38226424,65967.0,65966.0,0.001656]
[1727474596625,0.39996978,65967.0,65966.0,0.001656]
[1727474596855,0.26959,65967.0,65966.0,0.001656]
[1727474597079,0.26959,65967.0,65966.0,0.01013308]
[1727474597314,0.26259,65967.0,65966.0,0.084256]
[1727474597540,0.25159,65967.0,65966.0,0.084256]
[1727474597779,0.33375054,65967.0,65966.0,0.09273308]
[1727474598010,0.32516782,65967.0,65966.0,0.23303308]
[1727474598249,0.31916782,65967.0,65966.0,0.23303308]
[1727474598475,0.19744613,65967.0,65966.0,0.23303308]
[1727474598697,0.15200654,65967.0,65966.0,0.23303308]
[1727474599411,0.19744613,65967.0,65966.0,0.23303308]
[1727474599895,0.15312476,65967.0,65966.0,0.09273308]
[1727474600127,0.29050269,65967.0,65966.0,0.084256]
[1727474600582,0.28950269,65967.0,65966.0,0.084256]
[1727474601028,0.29150269,65967.0,65966.0,0.084256]
[1727474601250,0.17477471,65967.0,65966.0,0.084256]
[1727474601480,0.38472623,65967.0,65966.0,0.084256]
[1727474601743,0.38872623,65967.0,65966.0,0.084256]
[1727474601971,0.38472623,65967.0,65966.0,0.084256]
[1727474602199,0.38555423,65967.0,65966.0,0.084256]
[1727474602888,0.38955423,65967.0,65966.0,0.084256]
[1727474603110,0.41832416,65967.0,65966.0,0.084256]
[1727474603366,0.41432416,65967.0,65966.0,0.084256]
[1727474603596,0.54551339,65967.0,65966.0,0.001656]
[1727474603787,0.41132416,65967.0,65966.0,0.001656]
[1727474604114,0.42532416,65967.0,65966.0,0.001656]
[1727474604458,0.42032416,65967.0,65966.0,0.001656]
[1727474604685,0.41132416,65967.0,65966.0,0.001656]
[1727474604912,0.42132416,65967.0,65966.0,0.001656]
[1727474605894,0.42932416,65967.0,65966.0,0.001656]
[1727474606099,0.45732416,65967.0,65966.0,0.001656]
[1727474606299,0.46732416,65967.0,65966.0,0.001656]
[1727474606785,1.10110792,65967.0,65966.0,0.001656]
[1727474606987,0.33360447,65967.0,65966.0,0.001656]
[1727474607201,0.31331373,65967.0,65966.0,0.001656]
[1727474607408,0.3015438,65967.0,65966.0,0.001656]
[1727474607576,0.3155438,65967.0,65966.0,0.001656]
[1727474608146,0.48291193,65967.0,65966.0,0.001656]
[1727474608569,0.63929999,65967.0,65966.0,0.001656]
[1727474608794,0.62929999,65967.0,65966.0,0.001656]
[1727474609003,0.64329999,65967.0,65966.0,0.001656]
[1727474609467,0.61529999,65967.0,65966.0,0.001656]
[1727474609675,0.61329999,65967.0,65966.0,0.001656]
[1727474609842,0.61529999,65967.0,65966.0,0.001656]
[1727474610014,0.46193186,65967.0,65966.0,0.001656]
[1727474610213,0.47593186,65967.0,65966.0,0.001656]
[1727474610427,0.49970438,65967.0,65966.0,0.001656]
[1727474610646,0.48570438,65967.0,65966.0,0.001656]
[1727474611054,0.47170438,65967.0,65966.0,0.001656]
[1727474611261,0.48570438,65967.0,65966.0,0.001656]
[1727474611660,0.63904304,65967.0,65966.0,0.001656]
[1727474612299,0.48570438,65967.0,65966.0,0.001656]
[1727474612501,0.49970438,65967.0,65966.0,0.001656]
[1727474613082,0.48570438,65967.0,65966.0,0.001656]
[1727474613300,0.47170438,65967.0,65966.0,0.001656]
[1727474613532,0.49970438,65967.0,65966.0,0.001656]
[1727474615517,0.65304304,65967.0,65966.0,0.001656]
[1727474616866,0.81294304,65967.0,65966.0,0.001656]
[1727474617089,0.65960438,65967.0,65966.0,0.001656]
[1727474618637,0.64560438,65967.0,65966.0,0.001656]
[1727474618890,0.65960438,65967.0,65966.0,0.001656]
[1727474619340,0.79890283,65967.0,65966.0,0.001656]
[1727474619570,0.63900283,65967.0,65966.0,0.001656]
[1727474619794,0.63900283,65967.0,65966.0,0.083656]
[1727474619795,0.32931632,65967.0,65966.0,0.083656]
[1727474620270,0.3175438,65967.0,65966.0,0.083656]
[1727474620489,0.3035438,65967.0,65966.0,0.083656]
[1727474620751,0.3195438,65967.0,65966.0,0.083656]
[1727474620970,0.47376853,65967.0,65966.0,0.083656]
[1727474623543,0.49754062,65967.0,65966.0,0.083656]
[1727474623795,0.30331589,65967.0,65966.0,0.083656]
[1727474624079,0.41586279,65967.0,65966.0,0.083656]
[1727474624327,0.2795438,65967.0,65966.0,0.083656]
[1727474624597,0.2845438,65967.0,65966.0,0.083656]
[1727474625058,0.2655438,65967.0,65966.0,0.083656]
[1727474625286,0.39586279,65967.0,65966.0,0.083656]
[1727474625514,0.39778058,65967.0,65966.0,0.083656]
[1727474625747,0.2655438,65967.0,65966.0,0.223656]
[1727474625978,0.160418,65967.0,65966.0,0.223656]
[1727474626270,0.160418,65967.0,65966.0,0.2323248]
[1727474626526,0.25242302,65967.0,65966.0,0.2323248]
[1727474626761,0.34165987,65967.0,65966.0,0.2323248]
[1727474626985,0.36254165,65967.0,65966.0,0.223656]
[1727474627235,0.45054165,65967.0,65966.0,0.223656]
[1727474627468,0.45054143,65967.0,65966.0,0.223656]
[1727474627685,0.45154143,65967.0,65966.0,0.223656]
[1727474627933,0.45054143,65967.0,65966.0,0.223656]
[1727474628187,0.44454143,65967.0,65966.0,0.223656]
[1727474628675,0.46726307,65967.0,65966.0,0.223656]
[1727474629388,0.35565485,65967.0,65966.0,0.223656]
[1727474629631,0.46927507,65967.0,65966.0,0.223656]
[1727474629885,0.46327507,65967.0,65966.0,0.223656]
[1727474630105,0.47127507,65967.0,65966.0,0.223656]
[1727474630540,0.35765485,65967.0,65966.0,0.223656]
[1727474631256,0.37642392,65967.0,65966.0,0.223656]
[1727474631703,0.38142392,65967.0,65966.0,0.223656]
[1727474632172,0.37842392,65967.0,65966.0,0.223656]
[1727474632417,0.38142392,65967.0,65966.0,0.223656]
[1727474633328,0.49505262,65967.0,65966.0,0.223656]
[1727474633520,0.38142392,65967.0,65966.0,0.223656]
[1727474634200,0.49505262,65967.0,65966.0,0.223656]
[1727474635632,0.35465485,65967.0,65966.0,0.223656]
[1727474636160,0.35265485,65967.0,65966.0,0.223656]
[1727474636645,0.35765485,65967.0,65966.0,0.083656]
[1727474636889,0.35965485,65967.0,65966.0,0.083656]
[1727474637136,0.35765485,65967.0,65966.0,0.083656]
[1727474637591,0.35465485,65967.0,65966.0,0.083656]
[1727474637795,0.34965485,65967.0,65966.0,0.083656]
[1727474638020,0.35865485,65967.0,65966.0,0.083656]
[1727474638385,0.38242477,65967.0,65966.0,0.083656]
[1727474638844,0.39665485,65967.0,65966.0,0.001656]
[1727474639030,0.40465485,65967.0,65966.0,0.001656]
[1727474639245,0.36465485,65967.0,65966.0,0.001656]
[1727474639449,0.261418,65967.0,65966.0,0.220356]
[1727474639891,0.260418,65967.0,65966.0,0.220356]
[1727474640098,0.274418,65967.0,65966.0,0.220356]
[1727474640401,0.266418,65967.0,65966.0,0.220356]
[1727474640594,0.276418,65967.0,65966.0,0.220356]
[1727474640776,0.269418,65967.0,65966.0,0.220356]
[1727474641033,0.37202913,65967.0,65966.0,0.220356]
[1727474641255,0.37902913,65967.0,65966.0,0.220356]
[1727474641468,0.36902913,65967.0,65966.0,0.220356]
[1727474641704,0.272418,65967.0,65966.0,0.220356]
[1727474641936,0.265418,65967.0,65966.0,0.220356]
[1727474642172,0.270418,65967.0,65966.0,0.220356]
[1727474642893,0.265418,65967.0,65966.0,0.220356]
[1727474643129,0.269418,65967.0,65966.0,0.220356]
[1727474643369,0.2908328,65967.0,65966.0,0.220356]
[1727474643624,0.40445691,65967.0,65966.0,0.220356]
[1727474644083,0.2908328,65967.0,65966.0,0.220356]
[1727474644993,0.31460217,65967.0,65966.0,0.220356]
[1727474649279,0.29318737,65967.0,65966.0,0.220356]
[1727474649501,0.26137062,65967.0,65966.0,0.220356]
[1727474649731,0.23760125,65967.0,65966.0,0.220356]
[1727474649946,0.169418,65967.0,65966.0,0.220356]
[1727474650156,0.169418,65967.0,65966.0,0.22930861]
[1727474650591,0.156418,65967.0,65966.0,0.22930861]
[1727474650808,0.004828,65967.0,65966.0,0.22930861]
[1727474651251,0.000828,65967.0,65966.0,0.22930861]
[1727474651672,0.152418,65967.0,65966.0,0.22930861]
[1727474651890,0.19786619,65967.0,65966.0,0.22930861]
[1727474652099,0.04627619,65967.0,65966.0,0.22930861]
[1727474652359,0.04727619,65967.0,65966.0,0.22930861]
[1727474652767,0.04627619,65967.0,65966.0,0.22930861]
[1727474652999,0.04627619,65967.0,65966.0,0.38090161]
[1727474653000,0.000828,65967.0,65966.0,0.38090161]
[1727474653239,0.001828,65967.0,65966.0,0.22930861]
[1727474653689,0.002828,65967.0,65966.0,0.22930861]
[1727474653888,0.001828,65967.0,65966.0,0.22930861]
[1727474654412,0.002828,65967.0,65966.0,0.22930861]
[1727474655025,0.001828,65967.0,65966.0,0.22930861]
[1727474655228,0.002828,65967.0,65966.0,0.22930861]
[1727474657522,0.002828,65967.0,65966.0,0.38090161]
[1727474657709,0.002828,65967.0,65966.0,0.22930861]
[1727474657948,0.000828,65974.0,65966.0,0.22930861]
[1727474658118,0.000828,65974.0,65973.0,0.55334788]
[1727474658486,0.000828,65974.0,65973.0,0.56221588]
[1727474659167,0.001828,65974.0,65973.0,0.56221588]
[1727474660382,0.002828,65974.0,65973.0,0.235568]
[1727474660641,0.153402,65974.0,65973.0,0.235568]
[1727474660853,0.154402,65974.0,65973.0,0.236568]
[1727474662157,0.152402,65974.0,65973.0,0.235568]
[1727474662380,0.152402,65974.0,65973.0,0.237568]
[1727474663685,0.152402,65974.0,65973.0,0.235568]
[1727474663918,0.152402,65974.0,65973.0,0.236568]
[1727474667467,0.152402,65974.0,65973.0,0.2267]
[1727474667688,0.153402,65974.0,65973.0,0.2267]
[1727474668141,0.155402,65974.0,65973.0,0.2267]
[1727474668606,0.155402,65974.0,65973.0,0.235527]
[1727474669676,0.153402,65974.0,65973.0,0.235527]
[1727474669888,0.152402,65974.0,65973.0,0.235527]
[1727474670103,0.152402,65974.0,65973.0,0.236527]
[1727474670752,0.153402,65974.0,65973.0,0.235527]
[1727474670958,0.154402,65974.0,65973.0,0.236527]
[1727474671391,0.23509136,65974.0,65973.0,0.236527]
[1727474671801,0.002828,65974.0,65973.0,0.2277]
[1727474672043,0.154402,65974.0,65973.0,0.2277]
[1727474672289,0.154402,65974.0,65973.0,0.23651346]
[1727474672738,0.153402,65974.0,65973.0,0.23651346]
[1727474672973,0.003828,65974.0,65973.0,0.41158434]
[1727474673203,0.001828,65974.0,65973.0,0.59580947]
[1727474673422,0.000828,65974.0,65973.0,0.23551355]
[1727474673669,0.000828,65974.0,65973.0,0.23651355]
[1727474673901,0.152402,65974.0,65973.0,0.23651355]
[1727474674142,0.153402,65974.0,65973.0,0.23651355]
[1727474674364,0.153402,65974.0,65973.0,0.23551355]
[1727474674592,0.152402,65974.0,65973.0,0.2267]
[1727474674847,0.152402,65974.0,65973.0,0.2355003]
[1727474675056,0.001828,65974.0,65973.0,0.2365003]
[1727474675283,0.001828,65974.0,65973.0,0.379277]
[1727474675527,0.001828,65974.0,65973.0,0.3880773]
[1727474675970,0.002828,65974.0,65973.0,0.2365003]
[1727474676201,0.001828,65974.0,65973.0,0.2365003]
[1727474676631,0.001828,65974.0,65973.0,0.2355003]
[1727474676846,0.000828,65974.0,65973.0,0.2355003]
[1727474677075,0.152402,65974.0,65973.0,0.2355003]
[1727474677304,0.153402,65974.0,65973.0,0.2355003]
[1727474677755,0.155402,65974.0,65973.0,0.2425003]
[1727474678274,0.154402,65974.0,65973.0,0.2355003]
[1727474679652,0.152402,65974.0,65973.0,0.2375003]
[1727474680853,0.000828,65974.0,65973.0,0.2375003]
[1727474681084,0.152402,65974.0,65973.0,0.2355003]
[1727474681306,0.152402,65974.0,65973.0,0.2385003]
[1727474682889,0.152402,65974.0,65973.0,0.0890003]
[1727474683347,0.152402,65974.0,65973.0,0.0860003]
[1727474683568,0.152402,65974.0,65973.0,0.0900003]
[1727474684057,0.152402,65974.0,65973.0,0.2354003]
[1727474684276,0.152402,65974.0,65973.0,0.2226]
[1727474684478,0.152402,65974.0,65973.0,0.23239745]
[1727474684968,0.154402,65974.0,65973.0,0.23139745]
[1727474685429,0.002828,65974.0,65973.0,0.38297445]
[1727474685683,0.002828,65974.0,65973.0,0.40646833]
[1727474685905,0.002828,65974.0,65973.0,0.23139745]
[1727474686375,0.002828,65974.0,65973.0,0.38297445]
[1727474686611,0.000828,65974.0,65973.0,0.38297445]
[1727474686839,0.000828,65974.0,65973.0,0.23339745]
[1727474687072,0.152402,65974.0,65973.0,0.23339745]
[1727474687306,0.152402,65974.0,65973.0,0.23139745]
[1727474687532,0.19778663,65974.0,65973.0,0.23139745]
[1727474687768,0.19878663,65974.0,65973.0,0.23639745]
[1727474688001,0.19982425,65974.0,65973.0,0.23639745]
[1727474688231,0.153402,65974.0,65973.0,0.2226]
[1727474688497,0.32673232,65974.0,65973.0,0.2266]
[1727474688724,0.3256141,65974.0,65973.0,0.0812]
[1727474688956,0.3482688,65974.0,65973.0,0.0812]
[1727474689425,0.28019185,65974.0,65973.0,0.0812]
[1727474689647,0.28031007,65974.0,65973.0,0.0812]
[1727474689882,0.151586,65969.0,65968.0,0.0757]
[1727474690345,0.151586,65969.0,65968.0,0.0844996]
[1727474691004,0.21973827,65969.0,65968.0,0.0844996]
[1727474691492,0.22073827,65969.0,65968.0,0.0844996]
[1727474692433,0.152586,65969.0,65968.0,0.0844996]
[1727474692905,0.151586,65969.0,65968.0,0.0844996]
[1727474693141,0.151586,65969.0,65968.0,0.0874996]
[1727474693444,0.24250119,65969.0,65968.0,0.0874996]
[1727474693687,0.24250119,65969.0,65968.0,0.0844996]
[1727474693914,0.24250119,65969.0,65968.0,0.0864996]
[1727474694137,0.24251703,65969.0,65968.0,0.0864996]
[1727474694379,0.15270422,65969.0,65968.0,0.0864996]
[1727474694610,0.15270422,65969.0,65968.0,0.0844996]
[1727474694832,0.15270422,65969.0,65968.0,0.0854996]
[1727474695299,0.38638948,65969.0,65968.0,0.0854996]
[1727474695555,0.26522999,65969.0,65968.0,0.0854996]
[1727474695796,0.151586,65969.0,65968.0,0.0854996]
[1727474696279,0.151586,65969.0,65968.0,0.0844996]
[1727474696710,0.158586,65969.0,65968.0,0.0844996]
[1727474696965,0.3722235,65969.0,65968.0,0.0087996]
[1727474697446,0.251588,65968.0,65967.0,0.001656]
[1727474697685,0.25270622,65968.0,65967.0,0.001656]
[1727474697927,0.39782707,65968.0,65967.0,0.001656]
[1727474698181,0.39670885,65968.0,65967.0,0.001656]
[1727474698438,0.53308164,65968.0,65967.0,0.001656]
[1727474698705,0.44847954,65968.0,65967.0,0.001656]
[1727474699196,0.45447954,65968.0,65967.0,0.001656]
[1727474699451,0.44847954,65968.0,65967.0,0.001656]
[1727474699895,0.45947954,65968.0,65967.0,0.001656]
[1727474700115,0.60585313,65968.0,65967.0,0.001656]
[1727474700336,0.46647954,65968.0,65967.0,0.001656]
[1727474700558,0.46047954,65968.0,65967.0,0.001656]
[1727474700805,0.32635869,65968.0,65967.0,0.001656]
[1727474701285,0.279588,65968.0,65967.0,0.077356]
[1727474701286,0.41592367,65968.0,65967.0,0.077356]
[1727474701503,0.265588,65968.0,65967.0,0.077356]
[1727474701720,0.279588,65968.0,65967.0,0.077356]
[1727474702182,0.41262957,65968.0,65967.0,0.077356]
[1727474702414,0.39862957,65968.0,65967.0,0.077356]
[1727474702633,0.41262957,65968.0,65967.0,0.077356]
[1727474702851,0.39862957,65968.0,65967.0,0.077356]
[1727474703067,0.39662957,65968.0,65967.0,0.077356]
[1727474703293,0.41062957,65968.0,65967.0,0.077356]
[1727474703519,0.39662957,65968.0,65967.0,0.077356]
[1727474703806,0.40162957,65968.0,65967.0,0.001656]
[1727474704026,0.43762957,65968.0,65967.0,0.001656]
[1727474704259,0.54886349,65968.0,65967.0,0.001656]
[1727474704489,0.55786349,65968.0,65967.0,0.001656]
[1727474704940,0.43362957,65968.0,65967.0,0.001656]
[1727474705396,0.43642957,65968.0,65967.0,1e-06]
[1727474705617,0.44842957,65968.0,65967.0,1e-06]
[1727474705856,0.42742957,65968.0,65967.0,1e-06]
[1727474706326,0.45442957,65968.0,65967.0,1e-06]
[1727474706540,0.44042957,65968.0,65967.0,1e-06]
[1727474706762,0.44142957,65968.0,65967.0,1e-06]
[1727474706978,0.45542957,65968.0,65967.0,1e-06]
[1727474707487,0.60853417,65968.0,65967.0,1e-06]
[1727474708455,0.45542957,65968.0,65967.0,1e-06]
[1727474708950,0.44142957,65968.0,65967.0,1e-06]
[1727474709187,0.42742957,65968.0,65967.0,1e-06]
[1727474709424,0.45542957,65968.0,65967.0,1e-06]
[1727474709667,0.45625757,65968.0,65967.0,1e-06]
[1727474710831,0.60936217,65968.0,65967.0,1e-06]
[1727474711086,0.45625757,65968.0,65967.0,1e-06]
[1727474712299,0.48003095,65968.0,65967.0,1e-06]
[1727474717531,0.45625757,65968.0,65967.0,1e-06]
[1727474719361,0.29159,65967.0,65966.0,1e-06]
[1727474719589,0.78294894,65967.0,65966.0,1e-06]
[1727474720725,0.80672299,65967.0,65966.0,1e-06]
[1727474721639,0.82072299,65967.0,65966.0,1e-06]
[1727474721898,0.79694894,65967.0,65966.0,1e-06]
[1727474722124,0.78294894,65967.0,65966.0,1e-06]
[1727474722375,0.79694894,65967.0,65966.0,1e-06]
[1727474722613,0.81094894,65967.0,65966.0,1e-06]
[1727474722836,0.79694894,65967.0,65966.0,1e-06]
[1727474723062,0.81094894,65967.0,65966.0,1e-06]
[1727474723511,0.78294894,65967.0,65966.0,1e-06]
[1727474723728,0.79694894,65967.0,65966.0,1e-06]
[1727474724886,0.83472337,65967.0,65966.0,1e-06]
[1727474726290,1.47251249,65967.0,65966.0,1e-06]
[1727474726521,1.47251249,65967.0,65959.0,4e-07]
[1727474726522,0.62657788,65960.0,65959.0,4e-07]
[1727474726741,0.74987527,65960.0,65959.0,4e-07]
[1727474727005,0.268616,65956.0,65955.0,0.22645098]
[1727474727234,0.158627,65951.0,65950.0,0.0788]
[1727474727462,0.45669788,65951.0,65950.0,0.0788]
[1727474727694,0.45669788,65951.0,65950.0,0.08790732]
[1727474727937,0.59559309,65951.0,65950.0,0.08790732]
[1727474728156,0.59559309,65951.0,65950.0,0.0788]
[1727474729083,0.62359309,65951.0,65950.0,0.0788]
[1727474729581,0.63359309,65951.0,65950.0,0.0788]
[1727474730473,0.002,65947.0,65946.0,0.084156]
[1727474730689,0.58765102,65947.0,65946.0,0.084156]
[1727474730883,0.58765102,65947.0,65946.0,0.09326515]
[1727474730884,0.5865328,65947.0,65946.0,0.09326515]
[1727474731613,0.54060229,65947.0,65946.0,0.09326515]
[1727474731803,0.55460229,65947.0,65946.0,0.09326515]
[1727474732027,0.52860229,65947.0,65946.0,0.09326515]
[1727474732309,0.54260229,65947.0,65946.0,0.09326515]
[1727474732525,0.55560229,65947.0,65946.0,0.09326515]
[1727474732759,0.64618486,65947.0,65946.0,0.09326515]
[1727474732980,0.64718486,65947.0,65946.0,0.09326515]
[1727474733217,0.63318486,65947.0,65946.0,0.09326515]
[1727474733435,0.64718486,65947.0,65946.0,0.09326515]
[1727474734351,0.55660229,65947.0,65946.0,0.09326515]
[1727474734567,0.52860229,65947.0,65946.0,0.09326515]
[1727474734794,0.55238095,65947.0,65946.0,0.09326515]
[1727474735015,0.58038095,65947.0,65946.0,0.09326515]
[1727474735246,0.56638095,65947.0,65946.0,0.09326515]
[1727474735684,0.57938095,65947.0,65946.0,0.09326515]
[1727474736601,0.56638095,65947.0,65946.0,0.09326515]
[1727474737068,0.58038095,65947.0,65946.0,0.09326515]
[1727474737731,0.56638095,65947.0,65946.0,0.09326515]
[1727474737927,0.58038095,65947.0,65946.0,0.09326515]
[1727474738152,0.56638095,65947.0,65946.0,0.09326515]
[1727474739270,0.57938095,65947.0,65946.0,0.09326515]
[1727474739978,0.56638095,65947.0,65946.0,0.09326515]
[1727474740467,0.50632695,65947.0,65946.0,0.09326515]
[1727474740694,0.49232695,65947.0,65946.0,0.09326515]
[1727474741147,0.50632695,65947.0,65946.0,0.09326515]
[1727474741607,0.52032695,65947.0,65946.0,0.09326515]
[1727474741798,0.50632695,65947.0,65946.0,0.09326515]